[Event "Israeli Team-ch 2023"]
[Site "Petah Tikva"]
[Date "2023.05.05"]
[Round "9.32"]
[White "Roiz, Michael"]
[Black "Manor, Ilan"]
[Result "1-0"]
[ECO "E73"]
[WhiteElo "2577"]
[BlackElo "2464"]
[Annotator "TA"]
[PlyCount "69"]
[EventDate "2023.01.13"]
[EventCountry "ISR"]
[SourceTitle "playchess.com"]
[Source "ChessBase"]
[SourceQuality "1"]
[TimeControl "40/5400+30:1800+30"]

{[%evp 24,69,93,87,97,98,105,67,67,67,67,67,67,67,67,67,73,33,23,29,22,-18,-10,0,52,60,116,101,91,86,318,346,327,314,822,820,811,857,841,806,1286,1250,1991,1906,2271,2115,29984,29985]} 1. d4 {[%emt 0:00:04]} Nf6 {[%emt 0:00:08]} 2. c4 {[%emt 0:00:06]} g6 {[%emt 0:04:03]} 3. Nc3 {[%emt 0:00:06]} Bg7 {[%emt 0:00:10]} 4. e4 {[%emt 0:00:06]} d6 {[%emt 0:00:05]} 5. Be2 {[%emt 0:00:03]} O-O {[%emt 0:00:12]} 6. Be3 {[%emt 0:00:03]} e5 {[%emt 0:00:24]} 7. d5 {[%emt 0:00:02]} Nbd7 {[%emt 0:01:24]} 8. g4 {[%emt 0:00:07][%cal Bg2g4,Bg4g5][%mdl 32]} Nc5 {[%emt 0:02:24]} 9. f3 {[%emt 0:00:13]} h5 {[%emt 0:03:59]} 10. g5 {[%emt 0:00:05]} Nh7 {[%emt 0:00:49]} 11. h4 {[%emt 0:03:06][%cal Bh2h4,Bh4g5][%mdl 32]} f6 {[%emt 0:05:06]} 12. Qd2 {[%emt 0:02:07]} a5 {[%emt 0:03:43]} 13. Nh3 {[%emt 0:05:51] [#]} b6 $146 {[%emt 0:06:27] E73: King's Indian: Averbakh Variation without 6...c5.} ({Predecessor:} 13... Bxh3 14. Rxh3 fxg5 15. hxg5 Rf7 16. O-O-O Bf8 17. Rg1 Be7 18. b3 Qd7 19. Rhg3 Raf8 20. Kc2 Rf4 21. Bxf4 exf4 {1-0 Sarana,A (2654)-Livaic,L (2507) PNWCC Online blitz JP 12th 2020 (7)}) 14. gxf6 {[%emt 0:04:41]} Bxf6 {[%emt 0:01:05]} 15. Ng5 {[%emt 0:03:57]} Nxg5 {[%emt 0:16:06] White is slightly better.} 16. hxg5 {[%emt 0:00:20]} Bg7 {[%emt 0:00:13]} 17. O-O-O {[%emt 0:01:32]} a4 {[%emt 0:02:33]} 18. Rdf1 {[%emt 0:07:41]} Bd7 {[%emt 0:03:47]} 19. Bd1 {[%emt 0:07:42]} Qe8 {[%emt 0:02:49]} 20. Bc2 {[%emt 0:00:59]} b5 {[%emt 0:04:46]} 21. Bxc5 {[%emt 0:08:41]} dxc5 {[%emt 0:00:03]} 22. d6 {[%emt 0:01:33]} cxd6 {[%emt 0:23:56]} (22... bxc4 23. dxc7 a3 24. Qd6 $14) 23. Qxd6 {[%emt 0:01:32]} Be6 {[%emt 0:00:24]} (23... a3 $11) 24. cxb5 $14 {[%emt 0:06:14]} (24. Qxc5 Bxc4 25. Rf2 Qf7 $17) 24... Qf7 {[%emt 0:02:26] [#]} (24... a3 $14) 25. Kb1 $1 $16 {[%emt 0:06:27] White has more active pieces.} (25. Nxa4 $2 Rfd8 26. Qb6 Bxa2 $19) 25... a3 {[%emt 0:01:15]} 26. Nd5 {[%emt 0:04:22]} (26. Qxc5 Rfc8 27. Qe3 (27. Qb4 $2 Bf8 $19) 27... Bc4 $17) 26... Bxd5 $2 {[%emt 0:01:29] Black cannot hold the game after this.} (26... Rfd8 $16 27. Qxc5 Kh8) 27. exd5 $18 {[%emt 0:01:08][%cal Be4d5,Bd5c6][%mdl 32]} (27. Qxd5 Qxd5 28. exd5 Rab8 $16) 27... Rad8 {[%emt 0:02:33] Black is weak on the light squares} 28. Qc6 {[%emt 0:02:00]} ({Much less strong is} 28. Qxg6 Qxg6 29. Bxg6 Rxd5) ({Don't do} 28. Qxc5 Rc8 29. Qb4 Rxc2 30. Kxc2 Qxd5 31. Qxa3 (31. Qb3 Rc8+ 32. Kb1 Rc5 $18) 31... Rc8+ 32. Kb1 Qxb5 $18) 28... Qe8 $2 {[%emt 0:07:47] [#]} (28... e4 29. Bxe4 (29. Qxc5 exf3 30. Qxa3 f2 $16) 29... axb2) 29. Bxg6 {[%emt 0:05:52]} Qxc6 {[%emt 0:00:06]} 30. dxc6 {[%emt 0:00:19]} Rb8 {[%emt 0:03:37]} 31. Bd3 {[%emt 0:00:09]} Rfc8 {[%emt 0:00:33]} 32. Bc4+ {[%emt 0:01:19]} Kf8 {[%emt 0:00:03]} 33. f4 {[%emt 0:00:31][%cal Bf3f4,Bf4f5,Bf5f6][%mdl 32]} e4 {[%emt 0:00:29]} 34. f5 {[%emt 0:00:09]} Bxb2 {[%emt 0:01:17]} 35. f6 {[%emt 0:00:23] Weighted Error Value: White=0.08 (flawless) /Black=0.69} 1-0

[Event "Israeli Team-ch 2023"]
[Site "Petah Tikva"]
[Date "2023.05.05"]
[Round "9.33"]
[White "Aizenberg, Benny"]
[Black "Mikhalevski, Victor"]
[Result "*"]
[ECO "E32"]
[WhiteElo "2348"]
[BlackElo "2516"]
[Annotator "TA"]
[PlyCount "141"]
[EventDate "2023.01.13"]
[EventCountry "ISR"]
[SourceTitle "playchess.com"]
[Source "ChessBase"]
[SourceQuality "1"]
[TimeControl "40/5400+30:1800+30"]

{[%evp 12,141,-2,-9,0,0,-9,-64,14,0,0,4,0,-40,0,0,0,0,0,0,0,-85,-80,-75,-87,-94,-89,-135,-74,-58,-63,-87,-91,-89,-80,-102,-100,-98,-91,-137,-88,-87,-90,-106,-107,-135,451,450,517,514,856,818,2270,2366,2560,2363,29986,543,500,454,427,433,405,367,367,357,339,326,841,508,4122,4466,1569,1423,724,562,29981,29981,29971,1541,1374,1254,5691,5731,29956,29960,29961,29963,29964,29963,29962,29964,29964,29965,29971,29970,29969,29971,29969,29972,29970,12653,6485,68,29980,29981,29981,29980,29978,12820,5763,5341,5185,5121,5073,5065,5057,4862,1989,1418,839,813,779,669,495,220,905,68,70,68,68,69]} 1. d4 {[%emt 0:00:02]} Nf6 {[%emt 0:00:23]} 2. c4 {[%emt 0:00:06]} e6 {[%emt 0:00:04]} 3. Nc3 {[%emt 0:00:44]} Bb4 {[%emt 0:01:05]} 4. Qc2 {[%emt 0:00:21]} b6 {[%emt 0:02:51]} 5. Bd2 {[%emt 0:12:06]} Bb7 {[%emt 0:02:01]} 6. e3 {[%emt 0:00:31][%cal Be2e3,Be3e4,Be4e5][%mdl 32]} O-O {[%emt 0:00:55]} 7. Nge2 {[%emt 0:07:10] [#]} Be7 $146 {[%emt 0:09:26] E32: Nimzo-Indian: Classical (4 Qc2): 4...0-0.} ({Predecessor:} 7... d5 8. Ng3 dxc4 9. Bxc4 Bxg2 10. Rg1 Bf3 11. Nce4 Bxe4 12. Nxe4 Bxd2+ 13. Nxd2 Nc6 14. O-O-O Ne7 15. Nf3 {0-1 Sipila,M (2008)-Patosalmi,J (1765) Helsinki We Garde Spring A 2017 (2)}) 8. e4 {[%emt 0:20:01]} d5 {[%emt 0:09:03]} 9. cxd5 {[%emt 0:07:21]} (9. e5 $11 Ne4 10. cxd5 Nxd2 11. Qxd2) 9... exd5 {[%emt 0:01:12]} ({Better is} 9... c5 $1 $15) 10. e5 $11 {[%emt 0:02:45]} Ne4 {[%emt 0:07:12]} 11. Nxe4 {[%emt 0:13:48]} dxe4 {[%emt 0:00:21]} 12. Bc3 {[%emt 0:00:20]} c5 {[%emt 0:05:39]} 13. Rd1 {[%emt 0:00:31][%cal Od4d5]} cxd4 {[%emt 0:02:32]} 14. Nxd4 {[%emt 0:00:35] Nf5 is the strong threat.} Qc8 {[%emt 0:01:45] Against Nf5} 15. Be2 {[%emt 0:02:08]} Nc6 {[%emt 0:08:32][%cal Bb8c6,Bc6e5,Be5g6][%mdl 32]} 16. O-O {[%emt 0:05:18]} (16. Qxe4 $11 {remains equal.} Nxd4 17. Qxd4) 16... Nxe5 $17 {[%emt 0:07:06]} 17. Qc1 {[%emt 0:00:28]} Rd8 {[%emt 0:03:28]} 18. Qf4 {[%emt 0:01:37] Nf5 would be deadly.} Ng6 {[%emt 0:03:58]} 19. Qg3 {[%emt 0:02:06]} ({White should play} 19. Qe3) 19... Bf6 {[%emt 0:02:56]} (19... Bd6 $142 20. Qg5 f6) 20. Nb5 {[%emt 0:09:16]} Bxc3 {[%emt 0:03:20]} 21. Nxc3 {[%emt 0:00:31]} Qc5 {[%emt 0:00:59]} 22. Rfe1 {[%emt 0:04:46]} Qe5 {[%emt 0:04:10]} (22... Ne5 {with more complications.} 23. h3 h6 24. Bg4 Nxg4 25. hxg4 Rxd1 26. Rxd1 Re8) 23. Qxe5 {[%emt 0:07:17]} Nxe5 {[%emt 0:00:07]} 24. Bf1 {[%emt 0:00:10]} f5 {[%emt 0:01:02]} 25. Nb5 {[%emt 0:01:07]} (25. f3 $142) 25... g6 {[%emt 0:04:04]} (25... Rxd1 $142 26. Rxd1 g6) 26. Nd6 {[%emt 0:00:36]} Bc6 {[%emt 0:00:22]} 27. f4 {[%emt 0:00:59]} Ng4 {[%emt 0:01:09]} 28. h3 {[%emt 0:00:15] [#]} Ne3 {[%emt 0:00:19][%mdl 8192]} 29. Rxe3 $18 {[%emt 0:00:14]} Rd7 {[%emt 0:00:21]} 30. Rc3 {[%emt 0:01:04]} Bb7 {[%emt 0:00:48]} (30... Ba4 $142) 31. Bb5 {[%emt 0:00:23]} Rdd8 {[%emt 0:00:08]} 32. Rc7 {[%emt 0:00:32] And now Bc4+ would win.} Rac8 {[%emt 0:00:36]} 33. Rxb7 {[%emt 0:00:40]} Rc5 {[%emt 0:00:35]} 34. Bc4+ {[%emt 0:00:11]} (34. Ba4 $142 Kf8 35. Bb3 Ra5 36. Rxh7 Rc5 37. Rf7+ Kg8 38. Rxa7+ Kf8 39. Rf7+ Kg8 40. Rd7+ {[%mdl 64] Discovered Attack} Kf8 41. Rxd8+ Kg7 42. Nxe4) 34... Rxc4 {[%emt 0:00:05]} 35. Nxc4 {[%emt 0:00:17][%cal Rd1d8]} ({Less strong is} 35. Rxa7 Rc6 $16) 35... Rxd1+ {[%emt 0:00:04][%mdl 4096] Endgame KRN-KR} 36. Kf2 {[%emt 0:00:08]} Rc1 {[%emt 0:00:05]} 37. Ne3 {[%emt 0:01:45]} Rb1 {[%emt 0:00:50]} 38. Rxa7 {[%emt 0:00:38]} Rxb2+ {[%emt 0:00:11]} 39. Ke1 {[%emt 0:00:22]} g5 $2 {[%emt 0:00:49]} (39... b5 40. g4 Rh2 41. gxf5 Rxh3) 40. g3 {[%emt 0:01:21]} Rh2 {[%emt 0:19:57]} (40... gxf4 $142 41. gxf4 Rh2 42. Nxf5 Rxh3 43. Rg7+ Kf8) 41. fxg5 {[%emt 0:30:30]} Rxh3 {[%emt 0:12:37]} 42. Nxf5 {[%emt 0:00:00]} Rh5 {[%emt 0:00:18]} 43. Ne7+ {[%emt 0:00:18]} Kf7 {[%emt 0:00:20]} 44. Nd5+ {[%emt 0:00:15]} Kf8 {[%emt 0:00:35]} 45. Nxb6 {[%emt 0:00:13]} (45. Nf6 $142 Rh1+ 46. Ke2 Rh3 47. Nxh7+ Ke8 48. Nf6+ Kd8 49. Nxe4 b5 50. g6) 45... Rxg5 {[%emt 0:00:27]} 46. Kf2 {[%emt 0:00:19] Strongly threatening a4.} e3+ {[%emt 0:00:30]} 47. Kxe3 {[%emt 0:00:14]} Rxg3+ {[%emt 0:00:07]} 48. Kf4 {[%emt 0:00:23]} Rg2 {[%emt 0:00:25]} 49. a4 {[%emt 0:00:06][%cal Ba2a4,Ba4a5][%mdl 32]} ({Not} 49. Rxh7 Rxa2 50. Nd5 Rf2+ 51. Kg5 Rf7 $14) 49... h5 {[%emt 0:01:06]} 50. Kf3 {[%emt 0:01:03]} Ra2 {[%emt 0:00:55]} 51. Kg3 {[%emt 0:00:11]} Rb2 {[%emt 0:00:29]} 52. a5 {[%emt 0:00:51]} Ke8 {[%emt 0:00:19]} 53. Rh7 {[%emt 0:01:27]} Ra2 {[%emt 0:00:21]} 54. Rxh5 {[%emt 0:00:32]} Kd8 {[%emt 0:00:09]} 55. Rc5 {[%emt 0:00:05]} Ke7 {[%emt 0:00:25]} 56. Kf3 {[%emt 0:00:31]} (56. Rd5 $142 Ke6 57. Kf3 Ra1 58. Ke3 Kf7 59. Kd3 Ke6 60. Kc4 Ra2 61. Kb5) 56... Kd6 {[%emt 0:00:08]} 57. Rc4 $2 {[%emt 0:00:57]} (57. Rg5 $18 Kc6 58. Ke4) 57... Rb2 $2 {[%emt 0:00:20][%mdl 8192]} (57... Rxa5 $14 58. Rh4 Ra3+ 59. Ke4 Kc5) 58. Ra4 {[%emt 0:00:18]} Rb3+ {[%emt 0:01:27]} 59. Ke4 {[%emt 0:00:11]} Rh3 {[%emt 0:00:59]} 60. Kd4 {[%emt 0:00:58]} (60. a6 $142 Kc6 61. Ra1 (61. a7 Rh4+ 62. Kf5 Rxa4 $11) 61... Rh7 62. a7 Rh4+ 63. Ke5 Rh5+ 64. Kf6 Rh8 65. a8=Q+ Rxa8 66. Rxa8) 60... Kc6 {[%emt 0:00:31]} 61. Kc4 {[%emt 0:00:24]} Rh4+ {[%emt 0:01:24] [#]} 62. Kb3 $1 {[%emt 0:00:07]} Rh3+ {[%emt 0:00:09]} 63. Kc2 {[%emt 0:00:33]} Rh2+ {[%emt 0:00:08]} 64. Kd3 {[%emt 0:00:25][%cal Oa5a6]} Rh3+ {[%emt 0:00:07]} 65. Ke2 {[%emt 0:00:05][%cal Oa5a6] White wants to mate with a6!} Rh2+ {[%emt 0:00:34]} 66. Kf3 {[%emt 0:00:10][%cal Oa5a6] White threatens a6! and mate.} Rh3+ {[%emt 0:00:52]} 67. Kg4 {[%emt 0:00:20]} Rh7 {[%emt 0:00:34]} 68. Ra2 {[%emt 0:01:56]} (68. Rd4 $142) 68... Kb5 $2 {[%emt 0:00:54]} (68... Ra7 69. Kf5 Ra6 70. Rc2+ Kb5) 69. Nc8 $2 {[%emt 0:00:33]} (69. Nd5 $18) 69... Ka6 {[%emt 0:00:56]} 70. Kf5 {[%emt 0:00:28]} Rh5+ {[%emt 0:00:32]} 71. Ke4 {[%emt 0:00:00] Weighted Error Value: White=0.51/Black=0.69} *

[Event "Israeli Team-ch 2023"]
[Site "Petah Tikva"]
[Date "2023.05.12"]
[Round "11.1"]
[White "Gruenfeld, Yehuda"]
[Black "Nabaty, Tamir"]
[Result "1/2-1/2"]
[ECO "C78"]
[WhiteElo "2414"]
[BlackElo "2632"]
[Annotator "TA"]
[PlyCount "75"]
[EventDate "2023.01.13"]
[EventCountry "ISR"]
[SourceTitle "playchess.com"]
[Source "ChessBase"]
[SourceQuality "1"]
[TimeControl "40/5400+30:1800+30"]

{[%evp 20,75,31,0,41,41,43,41,53,45,52,43,67,61,64,47,49,50,68,22,39,35,43,40,58,41,70,22,0,0,0,0,0,0,7,0,0,0,0,-85,105,110,115,115,133,12,10,14,14,14,14,20,15,2,2,4,6,5]} 1. e4 {[%emt 0:00:03]} e5 {[%emt 0:00:17]} 2. Nf3 {[%emt 0:00:08]} Nc6 {[%emt 0:00:07]} 3. Bb5 {[%emt 0:00:06]} a6 {[%emt 0:01:01]} 4. Ba4 {[%emt 0:00:04]} b5 {[%emt 0:00:09]} 5. Bb3 {[%emt 0:00:07]} Bb7 {[%emt 0:00:09]} 6. O-O {[%emt 0:01:17]} Nf6 {[%emt 0:00:23]} 7. Re1 {[%emt 0:00:41]} Bc5 {[%emt 0:01:19]} 8. c3 {[%emt 0:00:24]} d6 {[%emt 0:00:53]} 9. d4 {[%emt 0:00:09]} Bb6 {[%emt 0:00:11]} 10. Be3 {[%emt 0:04:40] 10.a4 is setting a new trend.} O-O {[%emt 0:01:01]} 11. Nbd2 {[%emt 0:01:09]} Re8 {[%emt 0:05:48] C78: Ruy Lopez: Archangelsk and Möller Defences.} 12. d5 {[%emt 0:13:12]} Ne7 {[%emt 0:06:39]} 13. Bxb6 {[%emt 0:00:49]} cxb6 {[%emt 0:00:06] White is slightly better.} 14. Nf1 {[%emt 0:01:19] [#]} Bc8 $146 {[%emt 0:02:38]} ({Predecessor:} 14... Ng6 15. Bc2 Nf4 16. g3 N4h5 17. Ne3 Bc8 18. Nh4 g6 19. Bd3 Bd7 20. Qe2 Kh8 {0-1 Kele,K (2151)-Ivan,A (2268) HUN-chT2 Asztalos 1112 2011 (4.1)}) 15. N3d2 {[%emt 0:04:48]} g6 {[%emt 0:07:28]} 16. Ne3 {[%emt 0:03:19]} Rf8 {[%emt 0:03:34]} 17. Bc2 {[%emt 0:01:28]} Ne8 {[%emt 0:02:40]} 18. Rf1 {[%emt 0:03:19][%cal Be1f1,Bf1f4,Bf4f2][%mdl 32]} f5 {[%emt 0:03:12] aiming for ...f4.} 19. exf5 {[%emt 0:01:17]} (19. f4 $14) 19... gxf5 {[%emt 0:01:26]} 20. f4 $1 {[%emt 0:00:10]} exf4 {[%emt 0:02:21]} 21. Rxf4 {[%emt 0:00:17]} Ng6 {[%emt 0:02:42]} 22. Rf2 {[%emt 0:00:49][%cal Re3f5]} f4 {[%emt 0:09:40]} 23. Nef1 {[%emt 0:00:14]} ({White should try} 23. Bxg6 $14 hxg6 24. Nc2) 23... Ra7 {[%emt 0:01:17]} 24. Nf3 {[%emt 0:01:58]} Rg7 {[%emt 0:01:13]} 25. Qd4 {[%emt 0:03:11]} Nf6 {[%emt 0:03:17]} 26. h3 {[%emt 0:21:25]} Ne5 {[%emt 0:03:36]} 27. Nxe5 {[%emt 0:00:45]} dxe5 {[%emt 0:01:15]} 28. Qxe5 {[%emt 0:00:06]} Bxh3 {[%emt 0:00:46]} 29. Nh2 {[%emt 0:00:05]} (29. Qxf4 $2 Nd7 30. Bxh7+ Kxh7 31. Qe4+ Kg8 32. Rxf8+ Nxf8 $19) (29. Bd1 $1 $11 {remains equal.}) 29... Re8 $2 {[%emt 0:11:05]} (29... Qxd5 $2 30. Bb3 (30. Qxf4 $2 {perishes.} Rxg2+ 31. Kh1 Rxf2+ $19 {[%mdl 64] Discovered Attack}) 30... Bxg2 31. Rxf4 $18 (31. Bxd5+ Bxd5+ 32. Kf1 Bc4+ 33. Ke1 Re8 $16)) (29... Nxd5 $2 30. Rd1 $18 (30. Bb3 Rf5 $18)) (29... Kh8 $17 {Strongly threatening ...Rfg8.} 30. Kh1 (30. Qxf4 $2 Rfg8 $19) 30... Re8 31. Qxf4 (31. Qd4 Bxg2+ 32. Rxg2 Rxg2 $11 {[%mdl 64] Remove Defender}) 31... Qxd5) 30. Qxf4 $16 {[%emt 0:03:19] d6 is the strong threat.} Nxd5 {[%emt 0:03:22] [#]} 31. Bb3 $1 {[%emt 0:01:25] The board is on fire.} Kh8 {[%emt 0:00:42] [#]} 32. Bxd5 {[%emt 0:03:58]} ({Much worse is} 32. Qd4 $6 Ne3 $11) (32. Qf3 $1 $16 {[%cal Rf3h3]} Be6 33. Rd1) 32... Qxd5 $11 {[%emt 0:00:37] The position is equal.} 33. Qf3 {[%emt 0:00:05]} (33. Nf3 {with more complications.} Qc5 34. Nh4 Qe7 35. Nf5) 33... Qxf3 {[%emt 0:12:43]} 34. Nxf3 {[%emt 0:00:18]} Reg8 {[%emt 0:00:18][%cal Rh3g2]} 35. Ne1 {[%emt 0:00:40]} Be6 {[%emt 0:06:51]} 36. a4 {[%emt 0:04:37]} (36. a3 $5) 36... bxa4 {[%emt 0:02:53]} 37. Rxa4 {[%emt 0:00:09]} a5 {[%emt 0:00:02]} 38. Rd4 {[%emt 0:01:01] Weighted Error Value: White=0.14 (very precise) /Black=0.18 (very precise)} 1/2-1/2

[Event "Israeli Team-ch 2023"]
[Site "Petah Tikva"]
[Date "2023.05.12"]
[Round "11.2"]
[White "Roiz, Michael"]
[Black "Kantsler, Boris"]
[Result "1/2-1/2"]
[ECO "A42"]
[WhiteElo "2577"]
[BlackElo "2407"]
[Annotator "TA"]
[PlyCount "37"]
[EventDate "2023.01.13"]
[EventCountry "ISR"]
[SourceTitle "playchess.com"]
[Source "ChessBase"]
[SourceQuality "1"]
[TimeControl "40/5400+30:1800+30"]

{[%evp 14,37,68,57,65,65,67,56,83,59,58,45,81,55,62,38,31,38,45,44,42,38,37,39,46,35]} 1. Nf3 {[%emt 0:00:03]} g6 {[%emt 0:00:11]} 2. d4 {[%emt 0:00:22]} Bg7 {[%emt 0:00:04]} 3. c4 {[%emt 0:00:17]} d6 {[%emt 0:00:06]} 4. Nc3 {[%emt 0:00:06]} e5 {[%emt 0:02:05]} 5. e4 {[%emt 0:03:52]} Nc6 {[%emt 0:03:32]} 6. Bg5 {[%emt 0:01:15]} f6 {[%emt 0:01:31]} 7. Be3 {[%emt 0:00:43]} Nh6 {[%emt 0:01:19]} 8. dxe5 {[%emt 0:02:07]} Nxe5 {[%emt 0:01:38] A42: Modern Defence: Averbakh Variation.} 9. Nxe5 {[%emt 0:07:37]} fxe5 {[%emt 0:04:09]} 10. Be2 {[%emt 0:08:58] Prevents Ng4. White is more active.} Be6 {[%emt 0:05:00]} 11. O-O {[%emt 0:06:50]} O-O {[%emt 0:01:21]} 12. b3 {[%emt 0:00:40] [#]} Kh8 $146 {[%emt 0:10:50]} ({Predecessor:} 12... Nf7 13. Qd2 c6 14. Rfd1 Qe7 15. Bf3 b6 16. a4 a5 17. Rab1 {0-1 Grochulski,G (2069)-Slavov,M (1732) POL-ch U18 Murzasichle 2011 (1)}) 13. Rc1 {[%emt 0:02:40][%cal Ba1c1,Bc1d1,Bd1d2][%mdl 32]} Nf7 {[%emt 0:06:53] White is slightly better.} 14. Bg4 {[%emt 0:08:51]} Bxg4 {[%emt 0:01:16]} 15. Qxg4 {[%emt 0:00:25]} Bh6 {[%emt 0:00:02] Black is weak on the light squares} 16. Bxh6 {[%emt 0:00:32]} Nxh6 {[%emt 0:00:03]} 17. Qg3 {[%emt 0:00:08][%cal Oc4c5]} Nf7 {[%emt 0:02:19]} 18. Rcd1 {[%emt 0:09:12]} c6 {[%emt 0:02:16]} 19. Rd2 {[%emt 0:10:39] Weighted Error Value: White=0.09 (flawless) /Black=0.08 (flawless)} 1/2-1/2

[Event "Israeli Team-ch 2023"]
[Site "Petah Tikva"]
[Date "2023.05.12"]
[Round "11.3"]
[White "Musyuk, Lior"]
[Black "Mikhalevski, Victor"]
[Result "0-1"]
[ECO "D78"]
[WhiteElo "2341"]
[BlackElo "2516"]
[Annotator "TA"]
[PlyCount "84"]
[EventDate "2023.01.13"]
[EventCountry "ISR"]
[SourceTitle "playchess.com"]
[Source "ChessBase"]
[SourceQuality "1"]
[TimeControl "40/5400+30:1800+30"]

{[%evp 18,84,0,0,-7,-8,-3,-13,0,0,16,16,20,6,8,9,6,13,11,8,16,0,8,0,0,0,0,-33,-10,-206,-77,-67,-75,-197,-87,-91,-54,-53,-53,-62,-54,-54,-47,-47,-42,-46,-29,-32,-33,-33,-22,-79,-61,-76,-14,-17,-28,-50,-8,-13,-10,-11,-10,-152,-142,-182,-180,-289,-295]} 1. Nf3 {[%emt 0:00:31]} d5 {[%emt 0:00:22]} 2. g3 {[%emt 0:00:12]} g6 {[%emt 0:00:31]} 3. Bg2 {[%emt 0:00:12]} Bg7 {[%emt 0:00:04]} 4. d4 {[%emt 0:00:11]} c6 {[%emt 0:00:24]} 5. O-O {[%emt 0:01:25]} Nf6 {[%emt 0:00:06]} 6. c4 {[%emt 0:00:16]} O-O {[%emt 0:00:10]} 7. Qb3 {[%emt 0:00:15]} a5 {[%emt 0:00:11][%cal Ba7a5,Ba5a4][%mdl 32]} 8. Nc3 {[%emt 0:03:29]} a4 {[%emt 0:00:59]} 9. Qb4 {[%emt 0:02:13]} dxc4 {[%emt 0:00:13]} 10. Qxc4 {[%emt 0:00:15]} Bf5 {[%emt 0:03:49] Prevents Qd3. D78: Fianchetto Grünfeld: 6 0-0 c6.} 11. Ne5 {[%emt 0:03:35]} Nfd7 {[%emt 0:06:57] [#]} 12. Qb4 $146 {[%emt 0:04:17]} (12. Nxa4 $2 b5 13. Nxc6 bxc4 $19) ({Predecessor:} 12. Nxd7 Qxd7 13. Rd1 Rd8 14. Be3 b5 15. Qc5 a3 16. bxa3 Rc8 17. Rac1 Qd8 18. Qb4 {1-0 Nyzhnyk,I (2658)-Gutla,A (2227) Chesterfield SPICE Cup op 2022 (5)}) 12... Nxe5 {[%emt 0:46:42] The position is equal.} 13. dxe5 {[%emt 0:03:56]} Qa5 {[%emt 0:08:33]} 14. Qxa5 {[%emt 0:03:05]} ({But not} 14. Qxb7 Ra7 15. b4 Rxb7 $15) 14... Rxa5 {[%emt 0:00:17]} 15. f4 {[%emt 0:01:00]} f6 {[%emt 0:01:50]} 16. e4 {[%emt 0:00:51] Hoping for exf6.} Be6 {[%emt 0:00:44]} 17. exf6 {[%emt 0:00:41]} exf6 {[%emt 0:00:11]} 18. Be3 {[%emt 0:09:03]} Re8 {[%emt 0:00:12]} 19. Rad1 {[%emt 0:08:02][%cal Of4f5]} Bf8 {[%emt 0:01:37]} 20. Bb6 {[%emt 0:07:11]} Ra6 {[%emt 0:02:10]} 21. Bd4 {[%emt 0:05:25]} Nd7 {[%emt 0:01:07]} 22. Rfe1 {[%emt 0:07:15]} a3 {[%emt 0:00:38]} 23. Bf2 $2 {[%emt 0:10:13]} (23. b3 $11 {and White stays safe.}) 23... Raa8 {[%emt 0:11:06]} (23... axb2 $19 {is more deadly. And now ...Bb4 would win.} 24. f5 {[%mdl 64] Deflection} Bf7) 24. bxa3 {[%emt 0:01:25]} Rxa3 {[%emt 0:03:06]} 25. Ne2 {[%emt 0:10:14] [#]} (25. Nb1 $17 Raa8 26. Nc3) 25... Nc5 {[%emt 0:01:43]} ({Inferior is} 25... Rxa2 26. f5 gxf5 27. Nf4 Rxf2 28. Nxe6 $17) (25... Bb4 $1 $19 {and Black stays clearly on top.} 26. Rf1 Bg4) 26. Nc1 $17 {[%emt 0:01:27]} Bxa2 {[%emt 0:00:38] Black has more active pieces.} 27. Nxa2 {[%emt 0:00:16]} Rxa2 {[%emt 0:00:02]} 28. e5 {[%emt 0:01:14]} fxe5 {[%emt 0:02:05]} 29. fxe5 {[%emt 0:01:37]} Ne6 {[%emt 0:00:34]} 30. Bf1 {[%emt 0:03:05]} Rc2 {[%emt 0:02:07]} 31. Rc1 {[%emt 0:01:35]} Rd2 {[%emt 0:03:41]} 32. Be3 {[%emt 0:01:55] Prevents Ng5.} Rd7 {[%emt 0:00:41]} 33. Bc4 {[%emt 0:00:33]} Kg7 {[%emt 0:00:33]} 34. Rcd1 {[%emt 0:01:54]} (34. Kg2 $11 {keeps the balance.}) 34... Rxd1 {[%emt 0:00:26]} 35. Rxd1 {[%emt 0:00:01] [#]} Bc5 {[%emt 0:00:14]} (35... b5 $1 $17 {[%cal Rb5c4]} 36. Rd7+ Kh8) 36. Rd7+ $11 {[%emt 0:03:10]} Kh8 {[%emt 0:00:01]} 37. Kf2 {[%emt 0:00:22]} b6 {[%emt 0:01:02]} 38. Rb7 {[%emt 0:02:40]} Ng5 {[%emt 0:01:36][%cal Ob6b5] ...b5! is the strong threat.} 39. Bxc5 {[%emt 0:01:19]} bxc5 {[%emt 0:00:12]} 40. Ke3 {[%emt 0:01:17] Against Ne4} (40. Rb6 $11) 40... Rxe5+ $17 {[%emt 0:00:23]} 41. Kf4 {[%emt 0:30:09]} Rf5+ {[%emt 0:30:19]} 42. Kg4 {[%emt 0:00:16]} (42. Ke3 {was the only defense.}) 42... Ne4 {[%emt 0:01:32] Weighted Error Value: White=0.32/Black=0.21 (precise)} 0-1